[Event "*** SCC Grand Prix: Titled Tuesday Blitz"]
[Site "Chess.com"]
[Date "2020.07.07"]
[Round "5"]
[White "politeplayer"]
[Black "djano"]
[Result "1/2-1/2"]
[WhiteElo "2247"]
[BlackElo "2453"]
[TimeControl "180+1"]
[EndTime "10:56:09 PDT"]
[Termination "Game drawn by repetition"]

1. e4 {[%clk 0:03:00.9]} 1... g6 {[%clk 0:02:57.8]} 2. d4 {[%clk 0:03:00]} 2...
Bg7 {[%clk 0:02:58]} 3. Nc3 {[%clk 0:02:58.8]} 3... d6 {[%clk 0:02:58]} 4. f4
{[%clk 0:02:57.1]} 4... a6 {[%clk 0:02:57.8]} 5. Nf3 {[%clk 0:02:55.6]} 5... b5
{[%clk 0:02:58]} 6. e5 {[%clk 0:02:55.3]} 6... Bb7 {[%clk 0:02:57.2]} 7. Ng5
{[%clk 0:02:52.9]} 7... e6 {[%clk 0:02:49.7]} 8. Bd3 {[%clk 0:02:38.2]} 8... Nd7
{[%clk 0:02:37.4]} 9. Nce4 {[%clk 0:02:22.9]} 9... Qe7 {[%clk 0:02:09.9]} 10.
O-O {[%clk 0:02:10.5]} 10... Nh6 {[%clk 0:02:09.1]} 11. Kh1 {[%clk 0:01:54.6]}
11... Nf5 {[%clk 0:02:05.7]} 12. c3 {[%clk 0:01:47.4]} 12... h6 {[%clk
0:02:01.8]} 13. Nf3 {[%clk 0:01:44.3]} 13... d5 {[%clk 0:01:31]} 14. Nf2 {[%clk
0:01:36]} 14... c5 {[%clk 0:01:28.9]} 15. a4 {[%clk 0:01:11.4]} 15... c4 {[%clk
0:01:24.4]} 16. Bxf5 {[%clk 0:01:05.8]} 16... gxf5 {[%clk 0:01:22.3]} 17. axb5
{[%clk 0:01:05.3]} 17... axb5 {[%clk 0:01:23.2]} 18. Rxa8+ {[%clk 0:01:03.5]}
18... Bxa8 {[%clk 0:01:24.1]} 19. b3 {[%clk 0:01:01.5]} 19... O-O {[%clk
0:01:16.7]} 20. bxc4 {[%clk 0:00:50.1]} 20... dxc4 {[%clk 0:01:17.6]} 21. Bb2
{[%clk 0:00:41.5]} 21... Nb6 {[%clk 0:01:17.2]} 22. Qc1 {[%clk 0:00:39.1]} 22...
Qb7 {[%clk 0:01:03]} 23. Ba3 {[%clk 0:00:37.4]} 23... Rc8 {[%clk 0:01:00.3]} 24.
Bd6 {[%clk 0:00:33.1]} 24... Bf8 {[%clk 0:00:52.9]} 25. Bxf8 {[%clk 0:00:30.2]}
25... Rxf8 {[%clk 0:00:51.2]} 26. Qe1 {[%clk 0:00:24.3]} 26... Kh7 {[%clk
0:00:49.1]} 27. Nh3 {[%clk 0:00:23.5]} 27... Rg8 {[%clk 0:00:42.2]} 28. Qh4
{[%clk 0:00:19]} 28... Rg4 {[%clk 0:00:31.3]} 29. Nhg5+ {[%clk 0:00:14.7]} 29...
Kg7 {[%clk 0:00:25.8]} 30. Qh5 {[%clk 0:00:13]} 30... hxg5 {[%clk 0:00:21.6]}
31. h3 {[%clk 0:00:12.5]} 31... Rg3 {[%clk 0:00:13.5]} 32. fxg5 {[%clk
0:00:12.7]} 32... Qe4 {[%clk 0:00:10.8]} 33. Qh6+ {[%clk 0:00:12]} 33... Kg8
{[%clk 0:00:10.3]} 34. Qf6 {[%clk 0:00:11.9]} 34... b4 {[%clk 0:00:09.7]} 35.
Qd8+ {[%clk 0:00:11.7]} 35... Kh7 {[%clk 0:00:09]} 36. Qxb6 {[%clk 0:00:10.1]}
36... bxc3 {[%clk 0:00:08.5]} 37. Qc7 {[%clk 0:00:09.9]} 37... Kg8 {[%clk
0:00:07.2]} 38. Qd8+ {[%clk 0:00:08.8]} 38... Kg7 {[%clk 0:00:07.1]} 39. Qf6+
{[%clk 0:00:08.7]} 39... Kg8 {[%clk 0:00:07.4]} 40. Qd8+ {[%clk 0:00:08.4]}
40... Kh7 {[%clk 0:00:07]} 41. Qf6 {[%clk 0:00:07]} 41... Kg8 {[%clk 0:00:06.8]}
42. Qd8+ {[%clk 0:00:05.6]} 1/2-1/2

[Event "*** SCC Grand Prix: Titled Tuesday Blitz"]
[Site "Chess.com"]
[Date "2020.07.07"]
[Round "5"]
[White "PaulfromSPb"]
[Black "ValentinDragnev"]
[Result "1/2-1/2"]
[WhiteElo "2597"]
[BlackElo "2755"]
[TimeControl "180+1"]
[EndTime "10:56:10 PDT"]
[Termination "Game drawn - insufficient material"]

1. d4 {[%clk 0:02:32.9]} 1... e6 {[%clk 0:02:59.1]} 2. Bf4 {[%clk 0:02:33.2]}
2... Nf6 {[%clk 0:02:56.7]} 3. e3 {[%clk 0:02:32.9]} 3... b6 {[%clk 0:02:53.8]}
4. Nd2 {[%clk 0:02:32.5]} 4... Bb7 {[%clk 0:02:54.4]} 5. h3 {[%clk 0:02:32.1]}
5... Be7 {[%clk 0:02:52.3]} 6. c3 {[%clk 0:02:32.2]} 6... O-O {[%clk 0:02:52.8]}
7. Ngf3 {[%clk 0:02:32.4]} 7... d6 {[%clk 0:02:53.1]} 8. Bh2 {[%clk 0:02:31.5]}
8... c5 {[%clk 0:02:52.8]} 9. a4 {[%clk 0:02:31.2]} 9... a6 {[%clk 0:02:52.7]}
10. Bd3 {[%clk 0:02:29.9]} 10... Nbd7 {[%clk 0:02:53]} 11. O-O {[%clk
0:02:29.2]} 11... Re8 {[%clk 0:02:53.3]} 12. e4 {[%clk 0:02:25.9]} 12... Bf8
{[%clk 0:02:51.3]} 13. Re1 {[%clk 0:02:25.3]} 13... g6 {[%clk 0:02:48.7]} 14.
Qe2 {[%clk 0:02:23.1]} 14... e5 {[%clk 0:02:39]} 15. dxe5 {[%clk 0:02:22.4]}
15... Nxe5 {[%clk 0:02:35.5]} 16. Nxe5 {[%clk 0:02:21.7]} 16... dxe5 {[%clk
0:02:36.4]} 17. Nc4 {[%clk 0:02:20]} 17... Qc7 {[%clk 0:02:37]} 18. Rad1 {[%clk
0:02:16.5]} 18... Nh5 {[%clk 0:02:37]} 19. Bc2 {[%clk 0:02:11]} 19... Nf4 {[%clk
0:02:17.9]} 20. Qf3 {[%clk 0:02:10.5]} 20... Rad8 {[%clk 0:02:05]} 21. Nxe5
{[%clk 0:02:00.2]} 21... Qxe5 {[%clk 0:02:03.8]} 22. Bxf4 {[%clk 0:01:56.3]}
22... Qe6 {[%clk 0:02:02.4]} 23. Rxd8 {[%clk 0:01:52.6]} 23... Rxd8 {[%clk
0:02:02]} 24. Qe2 {[%clk 0:01:40.8]} 24... c4 {[%clk 0:01:58.1]} 25. f3 {[%clk
0:01:32.6]} 25... b5 {[%clk 0:01:58]} 26. axb5 {[%clk 0:01:31.5]} 26... axb5
{[%clk 0:01:58.9]} 27. Be3 {[%clk 0:01:31.6]} 27... h5 {[%clk 0:01:57.7]} 28.
Rd1 {[%clk 0:01:31.4]} 28... Rxd1+ {[%clk 0:01:56.2]} 29. Qxd1 {[%clk
0:01:32.3]} 29... b4 {[%clk 0:01:55.5]} 30. cxb4 {[%clk 0:01:25.9]} 30... Bd6
{[%clk 0:01:38.3]} 31. Bc5 {[%clk 0:01:23.3]} 31... Bxc5+ {[%clk 0:01:28.2]} 32.
bxc5 {[%clk 0:01:24.2]} 32... Qe5 {[%clk 0:01:28.5]} 33. Ba4 {[%clk 0:00:52.3]}
33... Qxc5+ {[%clk 0:01:27.6]} 34. Kh1 {[%clk 0:00:52.3]} 34... Qe5 {[%clk
0:01:23.3]} 35. Qc2 {[%clk 0:00:51.5]} 35... Kg7 {[%clk 0:01:16.5]} 36. Qxc4
{[%clk 0:00:45.2]} 36... Qxb2 {[%clk 0:01:16.3]} 37. Bb3 {[%clk 0:00:44.1]}
37... Qa1+ {[%clk 0:01:16.4]} 38. Kh2 {[%clk 0:00:43.3]} 38... Qe5+ {[%clk
0:01:16.8]} 39. Kg1 {[%clk 0:00:43.3]} 39... Qa1+ {[%clk 0:01:16.4]} 40. Kf2
{[%clk 0:00:41.5]} 40... Qb2+ {[%clk 0:01:16.5]} 41. Ke3 {[%clk 0:00:40.6]}
41... Qf6 {[%clk 0:01:13.6]} 42. Qc7 {[%clk 0:00:36]} 42... Ba6 {[%clk
0:01:08.1]} 43. Bd5 {[%clk 0:00:33]} 43... Qg5+ {[%clk 0:01:06.1]} 44. Kd4
{[%clk 0:00:31.2]} 44... Qd2+ {[%clk 0:01:04.3]} 45. Kc5 {[%clk 0:00:31.3]}
45... Qc3+ {[%clk 0:01:01.9]} 46. Kb6 {[%clk 0:00:31]} 46... Qxc7+ {[%clk
0:00:59]} 47. Kxc7 {[%clk 0:00:31.9]} 47... Bf1 {[%clk 0:00:59.4]} 48. h4 {[%clk
0:00:28.5]} 48... Bxg2 {[%clk 0:00:51.3]} 49. e5 {[%clk 0:00:28.2]} 49... g5
{[%clk 0:00:48.6]} 50. hxg5 {[%clk 0:00:28.1]} 50... h4 {[%clk 0:00:48.9]} 51.
e6 {[%clk 0:00:28.4]} 51... fxe6 {[%clk 0:00:20.5]} 52. Bxe6 {[%clk 0:00:29.3]}
52... Bxf3 {[%clk 0:00:19.6]} 53. Bf5 {[%clk 0:00:29]} 53... Bg2 {[%clk
0:00:14.1]} 54. Kd6 {[%clk 0:00:28.1]} 54... h3 {[%clk 0:00:10.6]} 55. Bxh3
{[%clk 0:00:27.3]} 55... Bxh3 {[%clk 0:00:11.5]} 56. g6 {[%clk 0:00:28]} 56...
Kxg6 {[%clk 0:00:12.4]} 1/2-1/2

[Event "*** SCC Grand Prix: Titled Tuesday Blitz"]
[Site "Chess.com"]
[Date "2020.07.07"]
[Round "5"]
[White "ErikBlomqvist"]
[Black "praveenb2002"]
[Result "0-1"]
[WhiteElo "2503"]
[BlackElo "2702"]
[TimeControl "180+1"]
[EndTime "10:56:11 PDT"]
[Termination "praveenb2002 won on time"]

1. e4 {[%clk 0:03:00.9]} 1... c6 {[%clk 0:02:59.4]} 2. d4 {[%clk 0:03:00.6]}
2... d5 {[%clk 0:02:59.5]} 3. exd5 {[%clk 0:03:01.5]} 3... cxd5 {[%clk
0:02:56.6]} 4. Bd3 {[%clk 0:03:01.7]} 4... Nc6 {[%clk 0:02:56.5]} 5. c3 {[%clk
0:03:01.8]} 5... Qc7 {[%clk 0:02:56.5]} 6. h3 {[%clk 0:03:00.2]} 6... g6 {[%clk
0:02:54.4]} 7. Nf3 {[%clk 0:02:59.1]} 7... Bg7 {[%clk 0:02:54.6]} 8. O-O {[%clk
0:02:59.4]} 8... Bf5 {[%clk 0:02:54]} 9. Be2 {[%clk 0:02:45.1]} 9... Nf6 {[%clk
0:02:48.7]} 10. Be3 {[%clk 0:02:45.1]} 10... O-O {[%clk 0:02:48.1]} 11. Nbd2
{[%clk 0:02:45.2]} 11... Rac8 {[%clk 0:02:46.3]} 12. Re1 {[%clk 0:02:42.5]}
12... Ne4 {[%clk 0:02:46.3]} 13. Nxe4 {[%clk 0:02:29.6]} 13... Bxe4 {[%clk
0:02:45.9]} 14. Nd2 {[%clk 0:02:23.4]} 14... Bf5 {[%clk 0:02:40.2]} 15. Nb3
{[%clk 0:02:14.6]} 15... Rfd8 {[%clk 0:02:22.2]} 16. Qd2 {[%clk 0:02:02]} 16...
e5 {[%clk 0:02:17]} 17. dxe5 {[%clk 0:02:00.1]} 17... Nxe5 {[%clk 0:02:17.9]}
18. Bf4 {[%clk 0:01:49.8]} 18... Qb6 {[%clk 0:02:03.2]} 19. Bxe5 {[%clk
0:01:40.1]} 19... Bxe5 {[%clk 0:02:04.1]} 20. Rad1 {[%clk 0:01:37.5]} 20... Bg7
{[%clk 0:01:57.3]} 21. Bf3 {[%clk 0:01:32.9]} 21... Be4 {[%clk 0:01:41]} 22. Qf4
{[%clk 0:01:22.9]} 22... Bc2 {[%clk 0:01:30.4]} 23. Rxd5 {[%clk 0:01:03.2]}
23... Bxb3 {[%clk 0:01:29.1]} 24. axb3 {[%clk 0:00:56]} 24... Qxb3 {[%clk
0:01:16.1]} 25. Re7 {[%clk 0:00:48.6]} 25... Rf8 {[%clk 0:00:18.9]} 26. Rdd7
{[%clk 0:00:48.7]} 26... Rc5 {[%clk 0:00:15.4]} 27. Rxb7 {[%clk 0:00:44]} 27...
Qa2 {[%clk 0:00:11.9]} 28. g3 {[%clk 0:00:36.3]} 28... Rf5 {[%clk 0:00:11.5]}
29. Qe3 {[%clk 0:00:34]} 29... a5 {[%clk 0:00:09.5]} 30. Be4 {[%clk 0:00:26.2]}
30... Rf6 {[%clk 0:00:09.5]} 31. Kg2 {[%clk 0:00:15]} 31... h5 {[%clk
0:00:09.5]} 32. h4 {[%clk 0:00:14.5]} 32... Re6 {[%clk 0:00:08.2]} 33. Rxe6
{[%clk 0:00:09.7]} 33... Qxe6 {[%clk 0:00:09.1]} 34. Qf3 {[%clk 0:00:10.1]}
34... Qf6 {[%clk 0:00:07.8]} 35. Bd5 {[%clk 0:00:05.4]} 35... Qxf3+ {[%clk
0:00:07.5]} 36. Kxf3 {[%clk 0:00:06.3]} 36... Be5 {[%clk 0:00:07.6]} 37. Ra7
{[%clk 0:00:05.3]} 37... Rb8 {[%clk 0:00:07.5]} 38. Rxf7 {[%clk 0:00:04.2]}
38... Kh8 {[%clk 0:00:06.7]} 39. Re7 {[%clk 0:00:03.1]} 39... Bf6 {[%clk
0:00:06.7]} 40. Rb7 {[%clk 0:00:01.9]} 40... Rd8 {[%clk 0:00:05]} 41. Be4 {[%clk
0:00:01.1]} 41... Rg8 {[%clk 0:00:03.9]} 0-1

[Event "*** SCC Grand Prix: Titled Tuesday Blitz"]
[Site "Chess.com"]
[Date "2020.07.07"]
[Round "5"]
[White "KejJaj"]
[Black "Alexandercs432"]
[Result "1-0"]
[WhiteElo "2022"]
[BlackElo "2120"]
[TimeControl "180+1"]
[EndTime "10:56:11 PDT"]
[Termination "KejJaj won by checkmate"]

1. d4 {[%clk 0:03:00.9]} 1... Nf6 {[%clk 0:02:58.9]} 2. Bf4 {[%clk 0:03:01.3]}
2... d5 {[%clk 0:02:59.1]} 3. e3 {[%clk 0:03:01.6]} 3... c5 {[%clk 0:02:53.1]}
4. c3 {[%clk 0:03:01.3]} 4... Nc6 {[%clk 0:02:51.8]} 5. Nd2 {[%clk 0:03:01.8]}
5... Qb6 {[%clk 0:02:50.4]} 6. Qb3 {[%clk 0:02:52.2]} 6... c4 {[%clk 0:02:50]}
7. Qc2 {[%clk 0:02:51]} 7... g6 {[%clk 0:02:40.1]} 8. e4 {[%clk 0:02:50.8]} 8...
Bg7 {[%clk 0:02:30.1]} 9. exd5 {[%clk 0:02:45.2]} 9... Nxd5 {[%clk 0:02:27.9]}
10. Nxc4 {[%clk 0:02:41.8]} 10... Qd8 {[%clk 0:02:24.1]} 11. Bg3 {[%clk
0:02:34.7]} 11... O-O {[%clk 0:02:23.9]} 12. Bd3 {[%clk 0:02:30.2]} 12... e5
{[%clk 0:02:09.6]} 13. dxe5 {[%clk 0:02:25.5]} 13... Re8 {[%clk 0:02:06.3]} 14.
Nf3 {[%clk 0:02:12.5]} 14... b5 {[%clk 0:02:04.9]} 15. Ncd2 {[%clk 0:02:00.4]}
15... Nxe5 {[%clk 0:02:04]} 16. Nxe5 {[%clk 0:01:55.9]} 16... Bxe5 {[%clk
0:02:04.9]} 17. O-O {[%clk 0:01:52.4]} 17... a6 {[%clk 0:01:54]} 18. Be4 {[%clk
0:01:47.2]} 18... Bb7 {[%clk 0:01:52.6]} 19. Rad1 {[%clk 0:01:43.9]} 19... Bxg3
{[%clk 0:01:19.7]} 20. hxg3 {[%clk 0:01:42.9]} 20... Qb6 {[%clk 0:01:01.1]} 21.
Rfe1 {[%clk 0:01:08.1]} 21... Nf6 {[%clk 0:00:50.6]} 22. Bxb7 {[%clk 0:01:05.9]}
22... Qxb7 {[%clk 0:00:51.5]} 23. Nf3 {[%clk 0:01:05.2]} 23... Rad8 {[%clk
0:00:46.4]} 24. Rxd8 {[%clk 0:00:40.3]} 24... Rxd8 {[%clk 0:00:45.4]} 25. Nd4
{[%clk 0:00:40.1]} 25... Kg7 {[%clk 0:00:43.6]} 26. a3 {[%clk 0:00:35.3]} 26...
Qc7 {[%clk 0:00:43.6]} 27. Qc1 {[%clk 0:00:26.5]} 27... h6 {[%clk 0:00:42.4]}
28. Qf4 {[%clk 0:00:25.1]} 28... Qd7 {[%clk 0:00:33.8]} 29. Qh4 {[%clk 0:00:19]}
29... Re8 {[%clk 0:00:28.5]} 30. Rxe8 {[%clk 0:00:17.5]} 30... Qxe8 {[%clk
0:00:29.4]} 31. Qf4 {[%clk 0:00:15.1]} 31... Qe1+ {[%clk 0:00:28.7]} 32. Kh2
{[%clk 0:00:15.3]} 32... h5 {[%clk 0:00:26.9]} 33. Nf3 {[%clk 0:00:13.2]} 33...
Ng4+ {[%clk 0:00:26.1]} 34. Qxg4 {[%clk 0:00:09]} 34... Qxf2 {[%clk 0:00:25.4]}
35. Qd4+ {[%clk 0:00:06.4]} 35... Kg8 {[%clk 0:00:25.1]} 36. Qxf2 {[%clk
0:00:05.1]} 36... h4 {[%clk 0:00:25.6]} 37. Qd4 {[%clk 0:00:04.9]} 37... Kf8
{[%clk 0:00:25.8]} 38. Kh3 {[%clk 0:00:04.7]} 38... Ke7 {[%clk 0:00:26.7]} 39.
Ng5 {[%clk 0:00:04.6]} 39... Ke8 {[%clk 0:00:27.1]} 40. Qe5+ {[%clk 0:00:04.9]}
40... Kf8 {[%clk 0:00:27.3]} 41. Qf6 {[%clk 0:00:04.7]} 41... Ke8 {[%clk
0:00:27.6]} 42. Qxf7+ {[%clk 0:00:05.6]} 42... Kd8 {[%clk 0:00:27.7]} 43. Qf8+
{[%clk 0:00:05.4]} 43... Kc7 {[%clk 0:00:28.6]} 44. Qe7+ {[%clk 0:00:05]} 44...
Kc6 {[%clk 0:00:29.5]} 45. Qe6+ {[%clk 0:00:05]} 45... Kc5 {[%clk 0:00:30.4]}
46. Ne4# {[%clk 0:00:04.3]} 1-0

[Event "*** SCC Grand Prix: Titled Tuesday Blitz"]
[Site "Chess.com"]
[Date "2020.07.07"]
[Round "5"]
[White "Artem_Koval"]
[Black "francyIM"]
[Result "0-1"]
[WhiteElo "2433"]
[BlackElo "2609"]
[TimeControl "180+1"]
[EndTime "10:56:12 PDT"]
[Termination "francyIM won on time"]

1. e4 {[%clk 0:03:00.9]} 1... e5 {[%clk 0:02:59.4]} 2. d4 {[%clk 0:03:00.2]}
2... Nc6 {[%clk 0:02:58.8]} 3. dxe5 {[%clk 0:02:59.9]} 3... Nxe5 {[%clk
0:02:56.3]} 4. f4 {[%clk 0:03:00.4]} 4... Ng6 {[%clk 0:02:54.6]} 5. Nf3 {[%clk
0:03:00.9]} 5... Bc5 {[%clk 0:02:52.5]} 6. Nc3 {[%clk 0:02:57.4]} 6... d6 {[%clk
0:02:51.7]} 7. f5 {[%clk 0:02:54.7]} 7... Ne5 {[%clk 0:02:51]} 8. Nxe5 {[%clk
0:02:53.7]} 8... dxe5 {[%clk 0:02:51.9]} 9. Qxd8+ {[%clk 0:02:53.9]} 9... Kxd8
{[%clk 0:02:52.1]} 10. Bg5+ {[%clk 0:02:54.5]} 10... f6 {[%clk 0:02:51.1]} 11.
O-O-O+ {[%clk 0:02:55]} 11... Bd7 {[%clk 0:02:51.3]} 12. Bh4 {[%clk 0:02:49.9]}
12... c6 {[%clk 0:02:50.1]} 13. g4 {[%clk 0:02:41.4]} 13... Kc7 {[%clk
0:02:49.8]} 14. Bc4 {[%clk 0:02:31.4]} 14... Nh6 {[%clk 0:02:48.6]} 15. h3
{[%clk 0:02:29.2]} 15... Be8 {[%clk 0:02:48.5]} 16. Rh2 {[%clk 0:02:06.1]} 16...
Bf7 {[%clk 0:02:47.9]} 17. Bxf7 {[%clk 0:02:04.4]} 17... Nxf7 {[%clk 0:02:47.7]}
18. Bf2 {[%clk 0:02:02.7]} 18... Bxf2 {[%clk 0:02:46.9]} 19. Rxf2 {[%clk
0:02:03.6]} 19... h5 {[%clk 0:02:47.5]} 20. Rfd2 {[%clk 0:02:00.8]} 20... Rad8
{[%clk 0:02:44.7]} 21. Rxd8 {[%clk 0:02:00.6]} 21... Nxd8 {[%clk 0:02:41.8]} 22.
Rg1 {[%clk 0:01:47.7]} 22... hxg4 {[%clk 0:02:30.6]} 23. Rxg4 {[%clk 0:01:47.3]}
23... Rh7 {[%clk 0:02:26.9]} 24. h4 {[%clk 0:01:35.6]} 24... Nf7 {[%clk
0:02:26.5]} 25. Kd2 {[%clk 0:01:27.5]} 25... Nd6 {[%clk 0:02:25.9]} 26. b3
{[%clk 0:01:23.8]} 26... Kd7 {[%clk 0:02:25.2]} 27. Ke3 {[%clk 0:01:23.9]} 27...
Ke7 {[%clk 0:02:25.3]} 28. Kf3 {[%clk 0:01:24.5]} 28... Kf7 {[%clk 0:02:26.2]}
29. Ne2 {[%clk 0:01:14.6]} 29... Rh8 {[%clk 0:02:24]} 30. Ng3 {[%clk 0:01:14.9]}
30... Nb5 {[%clk 0:02:20.7]} 31. Ke3 {[%clk 0:01:07.9]} 31... Nc3 {[%clk
0:02:06.1]} 32. a4 {[%clk 0:01:05.2]} 32... b5 {[%clk 0:02:04.8]} 33. axb5
{[%clk 0:01:01.1]} 33... cxb5 {[%clk 0:02:05.7]} 34. h5 {[%clk 0:01:01.2]} 34...
a5 {[%clk 0:02:04]} 35. Kd3 {[%clk 0:00:52.8]} 35... Nd1 {[%clk 0:02:01.3]} 36.
Ke2 {[%clk 0:00:51.2]} 36... Nc3+ {[%clk 0:02:00.7]} 37. Kd3 {[%clk 0:00:51.6]}
37... b4 {[%clk 0:02:00.5]} 38. Rh4 {[%clk 0:00:43.4]} 38... Rd8+ {[%clk
0:01:53.7]} 39. Ke3 {[%clk 0:00:43.8]} 39... Nd1+ {[%clk 0:01:52.8]} 40. Ke2
{[%clk 0:00:42.8]} 40... Nc3+ {[%clk 0:01:52.4]} 41. Ke3 {[%clk 0:00:43.4]}
41... Nb5 {[%clk 0:01:33.6]} 42. h6 {[%clk 0:00:41.9]} 42... Rh8 {[%clk
0:01:31.4]} 43. h7 {[%clk 0:00:38.4]} 43... Nd4 {[%clk 0:01:31.2]} 44. Kd3
{[%clk 0:00:37.4]} 44... Nf3 {[%clk 0:01:28]} 45. Rh1 {[%clk 0:00:34.7]} 45...
Ng5 {[%clk 0:01:27.9]} 46. Ra1 {[%clk 0:00:33.4]} 46... Rd8+ {[%clk 0:01:24.6]}
47. Kc4 {[%clk 0:00:24.9]} 47... Rc8+ {[%clk 0:01:21]} 48. Kb5 {[%clk
0:00:25.4]} 48... Nxh7 {[%clk 0:01:20.6]} 49. Kxa5 {[%clk 0:00:22.7]} 49... Ra8+
{[%clk 0:01:19.6]} 50. Kxb4 {[%clk 0:00:11.9]} 50... Rxa1 {[%clk 0:01:20.5]} 51.
c4 {[%clk 0:00:12]} 51... Nf8 {[%clk 0:01:13.7]} 52. Ne2 {[%clk 0:00:10.9]}
52... Nd7 {[%clk 0:01:12.9]} 53. Nc3 {[%clk 0:00:10.9]} 53... Ke7 {[%clk
0:01:11.8]} 54. Kb5 {[%clk 0:00:10.4]} 54... Ra8 {[%clk 0:01:07.1]} 55. Nd5+
{[%clk 0:00:08.4]} 55... Kd6 {[%clk 0:01:06.4]} 56. b4 {[%clk 0:00:08.3]} 56...
Rb8+ {[%clk 0:01:06.3]} 57. Ka4 {[%clk 0:00:08.6]} 57... Nc5+ {[%clk 0:01:06.2]}
58. bxc5+ {[%clk 0:00:06.2]} 58... Kxc5 {[%clk 0:01:07.1]} 59. Nc7 {[%clk
0:00:01.8]} 59... Kxc4 {[%clk 0:01:06.6]} 60. Ka5 {[%clk 0:00:01.7]} 60... Kd4
{[%clk 0:01:05.9]} 61. Ne6+ {[%clk 0:00:02]} 61... Kxe4 {[%clk 0:01:05.9]} 62.
Nxg7 {[%clk 0:00:02.9]} 62... Rg8 {[%clk 0:01:05.5]} 63. Ne6 {[%clk 0:00:02]}
63... Kxf5 {[%clk 0:01:05.3]} 0-1

[Event "*** SCC Grand Prix: Titled Tuesday Blitz"]
[Site "Chess.com"]
[Date "2020.07.07"]
[Round "5"]
[White "aisha_zakirova"]
[Black "Ole83"]
[Result "1-0"]
[WhiteElo "2143"]
[BlackElo "2301"]
[TimeControl "180+1"]
[EndTime "10:56:12 PDT"]
[Termination "aisha_zakirova won on time"]

1. d4 {[%clk 0:03:00.9]} 1... Nf6 {[%clk 0:02:57.5]} 2. c4 {[%clk 0:03:00.5]}
2... e6 {[%clk 0:02:56.2]} 3. Nf3 {[%clk 0:03:00.3]} 3... c5 {[%clk 0:02:54.3]}
4. d5 {[%clk 0:02:59.1]} 4... exd5 {[%clk 0:02:53.3]} 5. cxd5 {[%clk 0:02:57.8]}
5... d6 {[%clk 0:02:54.2]} 6. Nc3 {[%clk 0:02:56.5]} 6... g6 {[%clk 0:02:54.1]}
7. e4 {[%clk 0:02:56.2]} 7... a6 {[%clk 0:02:53.9]} 8. h3 {[%clk 0:02:56.2]}
8... Bg7 {[%clk 0:02:54.4]} 9. a4 {[%clk 0:02:54.2]} 9... O-O {[%clk 0:02:54]}
10. Bd3 {[%clk 0:02:54.2]} 10... Nbd7 {[%clk 0:02:52.4]} 11. O-O {[%clk
0:02:53.9]} 11... Ne8 {[%clk 0:02:49.7]} 12. a5 {[%clk 0:02:46.7]} 12... Ne5
{[%clk 0:02:46.3]} 13. Nxe5 {[%clk 0:02:37.7]} 13... Bxe5 {[%clk 0:02:45]} 14.
f4 {[%clk 0:02:35.4]} 14... Bd4+ {[%clk 0:02:44.1]} 15. Kh1 {[%clk 0:02:35.1]}
15... f5 {[%clk 0:02:43.1]} 16. Qf3 {[%clk 0:02:27.6]} 16... Ng7 {[%clk
0:02:40.1]} 17. Ne2 {[%clk 0:02:24.4]} 17... Bf6 {[%clk 0:02:38.3]} 18. Ng3
{[%clk 0:02:22.3]} 18... Bd7 {[%clk 0:02:32.1]} 19. exf5 {[%clk 0:02:20.5]}
19... gxf5 {[%clk 0:02:30.6]} 20. Nh5 {[%clk 0:02:13.4]} 20... Nxh5 {[%clk
0:02:28.9]} 21. Qxh5 {[%clk 0:02:13.1]} 21... Qe8 {[%clk 0:02:28.5]} 22. Qf3
{[%clk 0:02:10.8]} 22... Qf7 {[%clk 0:02:24.4]} 23. Bd2 {[%clk 0:02:07.2]} 23...
Bxb2 {[%clk 0:02:09.7]} 24. Rab1 {[%clk 0:02:06.4]} 24... Qg7 {[%clk 0:02:09]}
25. Be3 {[%clk 0:01:52.9]} 25... Rae8 {[%clk 0:02:05.5]} 26. Qf2 {[%clk
0:01:50]} 26... Bc3 {[%clk 0:01:50.4]} 27. Rxb7 {[%clk 0:01:48.5]} 27... Re7
{[%clk 0:01:48.2]} 28. Bxa6 {[%clk 0:01:42.9]} 28... Bxa5 {[%clk 0:01:46.2]} 29.
Qa2 {[%clk 0:01:25.9]} 29... Bb4 {[%clk 0:01:41]} 30. Bg1 {[%clk 0:01:21.3]}
30... Bc8 {[%clk 0:01:33.5]} 31. Rb6 {[%clk 0:01:17.9]} 31... Qg6 {[%clk
0:01:20.7]} 32. Bxc8 {[%clk 0:01:02.1]} 32... Rxc8 {[%clk 0:01:19]} 33. Qa6
{[%clk 0:01:01.8]} 33... Rd8 {[%clk 0:01:14.7]} 34. Rc6 {[%clk 0:01:00.5]} 34...
Rg7 {[%clk 0:01:12.9]} 35. Rf2 {[%clk 0:00:58.4]} 35... Qf7 {[%clk 0:01:04.4]}
36. Rxd6 {[%clk 0:00:57.5]} 36... Rf8 {[%clk 0:01:00.1]} 37. Re6 {[%clk
0:00:53]} 37... Qd7 {[%clk 0:00:55]} 38. Qc4 {[%clk 0:00:46.6]} 38... Kh8 {[%clk
0:00:49.7]} 39. Rfe2 {[%clk 0:00:45.9]} 39... Rd8 {[%clk 0:00:45.2]} 40. d6
{[%clk 0:00:45.1]} 40... Qc6 {[%clk 0:00:42.4]} 41. Bd4 {[%clk 0:00:34.1]} 41...
Rxd6 {[%clk 0:00:29.5]} 42. Bxg7+ {[%clk 0:00:33]} 42... Kxg7 {[%clk 0:00:28.5]}
43. Re7+ {[%clk 0:00:29.7]} 43... Kh6 {[%clk 0:00:25.5]} 44. Qf7 {[%clk
0:00:28.1]} 44... Rd1+ {[%clk 0:00:12.9]} 45. Kh2 {[%clk 0:00:28]} 45... Qg6
{[%clk 0:00:12.5]} 46. R7e6 {[%clk 0:00:24.9]} 46... c4 {[%clk 0:00:10.7]} 47.
Rxg6+ {[%clk 0:00:24.9]} 47... hxg6 {[%clk 0:00:09.7]} 48. Re6 {[%clk 0:00:25]}
1-0